[Event "Mitropa Cup Women 2024"]
[Site "Apolda"]
[Date "2024.02.16"]
[Round "2.14"]
[White "Schippke, Manon"]
[Black "Georgescu, Lena"]
[Result "1/2-1/2"]
[ECO "C45"]
[WhiteElo "2162"]
[BlackElo "2268"]
[Annotator "RC"]
[PlyCount "175"]
[EventDate "2024.02.15"]
[EventType "team-tourn"]
[EventCountry "GER"]
[SourceTitle "playchess.com"]
[Source "ChessBase"]
[SourceQuality "1"]
[WhiteTeam "France"]
[BlackTeam "Switzerland"]
[WhiteTeamCountry "FRA"]
[BlackTeamCountry "SUI"]
[TimeControl "40/5400+30:1800+30"]

1. e4 {[%emt 0:00:04]} e5 {[%emt 0:00:03]} 2. Nf3 {[%emt 0:00:13]} Nc6 {[%emt 0:00:04]} 3. d4 {[%emt 0:00:23]} exd4 {[%emt 0:00:04]} 4. Nxd4 {[%emt 0:00:12]} Bc5 {[%emt 0:00:06]} 5. Nb3 {[%emt 0:00:27]} Bb6 {[%emt 0:00:06]} 6. Nc3 {[%emt 0:00:26]} Qf6 {[%emt 0:00:11]} 7. Qe2 {[%emt 0:09:07]} Nge7 {[%emt 0:00:21]} 8. Be3 {[%emt 0:02:33]} d6 {[%emt 0:00:16]} 9. O-O-O {[%emt 0:04:59]} Bd7 {[%emt 0:00:15]} 10. g3 {[%emt 0:09:31]} O-O-O {[%emt 0:00:48]} 11. Bxb6 {[%emt 0:02:01]} axb6 {[%emt 0:00:39]} 12. Bg2 {[%emt 0:02:12]} g5 {[%emt 0:03:53]} 13. Rhf1 {[%emt 0:12:12]} Kb8 {[%emt 0:13:37]} 14. Kb1 {[%emt 0:01:54]} g4 {[%emt 0:05:46]} 15. f4 {[%emt 0:06:18]} gxf3 {[%emt 0:00:12]} 16. Rxf3 {[%emt 0:00:05]} Qg6 {[%emt 0:05:01]} 17. Rf4 {[%emt 0:06:56]} h5 {[%emt 0:04:25]} 18. Rdf1 {[%emt 0:02:22]} Ne5 {[%emt 0:03:22]} 19. Nd4 {[%emt 0:03:46]} Rde8 {[%emt 0:06:34]} 20. Qf2 {[%emt 0:05:11]} N7c6 {[%emt 0:04:16]} 21. Nf5 {[%emt 0:01:32]} Be6 {[%emt 0:06:18]} 22. Nd5 {[%emt 0:03:08]} Ng4 {[%emt 0:04:33]} 23. Qg1 {[%emt 0:01:38]} Nge5 {[%emt 0:13:30]} 24. b3 {[%emt 0:07:19]} Qg5 {[%emt 0:06:38]} 25. Rd1 {[%emt 0:08:27]} Ng6 {[%emt 0:02:02]} 26. h4 {[%emt 0:00:13]} Qd8 {[%emt 0:00:41]} 27. Rff1 {[%emt 0:01:20]} Nge5 {[%emt 0:02:47]} 28. Qf2 {[%emt 0:02:00]} Reg8 {[%emt 0:00:51]} 29. Bh3 {[%emt 0:04:49]} Ng4 {[%emt 0:02:06]} 30. Bxg4 {[%emt 0:01:00]} Rxg4 {[%emt 0:00:11]} 31. Nf4 {[%emt 0:00:31]} Ne5 {[%emt 0:01:51]} 32. Ne3 {[%emt 0:00:52]} Rgg8 {[%emt 0:01:37]} 33. Nfd5 {[%emt 0:01:13]} Rg6 {[%emt 0:02:19]} 34. Nf4 {[%emt 0:00:54]} Rgg8 {[%emt 0:00:16]} 35. Nfd5 {[%emt 0:00:43]} Rg6 {[%emt 0:00:34]} 36. Nf5 {[%emt 0:00:37]} Rg4 {[%emt 0:02:10]} 37. Nf4 {[%emt 0:00:28]} Qe8 {[%emt 0:01:33]} 38. Nd4 {[%emt 0:00:55]} Rgg8 {[%emt 0:02:36]} 39. a4 {[%emt 0:00:36]} Ng4 {[%emt 0:03:17]} 40. Qd2 {[%emt 0:00:21]} Bd7 {[%emt 0:01:54]} 41. Rde1 {[%emt 0:01:30]} Ne5 {[%emt 0:08:32]} 42. Qc3 {[%emt 0:01:03]} Bc6 {[%emt 0:09:53]} 43. Kb2 {[%emt 0:29:59]} Kc8 {[%emt 0:02:46]} 44. Nf5 {[%emt 0:00:00]} Kd7 {[%emt 0:07:18]} 45. Qd4 {[%emt 0:00:00]} b5 {[%emt 0:02:28]} 46. a5 {[%emt 0:00:00]} Ng6 {[%emt 0:01:52]} 47. Nd3 {[%emt 0:00:00]} Ne5 {[%emt 0:00:54]} 48. Nf4 {[%emt 0:00:00]} Ng6 {[%emt 0:00:07]} 49. Ng7 {[%emt 0:00:00]} Qe5 {[%emt 0:00:45]} 50. Qxe5 {[%emt 0:00:00]} Nxe5 {[%emt 0:01:03]} 51. Nfxh5 {[%emt 0:00:00]} Kc8 {[%emt 0:01:02]} 52. Nf5 {[%emt 0:00:00]} Kb8 {[%emt 0:01:03]} 53. Nf6 {[%emt 0:00:00]} Rg6 {[%emt 0:00:35]} 54. Nd5 {[%emt 0:00:00]} Rg4 {[%emt 0:00:37]} 55. Rf4 {[%emt 0:00:43]} Rxf4 {[%emt 0:00:26]} 56. Nxf4 {[%emt 0:00:06]} Ng6 {[%emt 0:00:41]} 57. Nxg6 {[%emt 0:01:06]} fxg6 {[%emt 0:00:01]} 58. Ne7 {[%emt 0:00:04]} Be8 {[%emt 0:00:44]} 59. Rf1 {[%emt 0:00:13]} Rh7 {[%emt 0:00:46]} 60. Nd5 {[%emt 0:00:15]} Bc6 {[%emt 0:00:32]} 61. Rf8+ {[%emt 0:00:45]} Ka7 {[%emt 0:00:02]} 62. Nf6 {[%emt 0:00:05]} Re7 {[%emt 0:00:34]} 63. Rg8 {[%emt 0:00:03]} Re6 {[%emt 0:00:32]} 64. Rxg6 {[%emt 0:00:42]} Bxe4 {[%emt 0:00:11]} 65. Rh6 {[%emt 0:00:02]} d5 {[%emt 0:00:52]} 66. b4 {[%emt 0:01:30]} d4 {[%emt 0:00:45]} 67. Ng4 {[%emt 0:00:49]} Re7 {[%emt 0:00:25]} 68. Nf2 {[%emt 0:01:06]} Bf5 {[%emt 0:00:46]} 69. Rf6 {[%emt 0:00:26]} Bh7 {[%emt 0:00:16]} 70. Nh3 {[%emt 0:01:56]} Re2 {[%emt 0:00:21]} 71. Rf2 {[%emt 0:02:58]} Re3 {[%emt 0:00:30]} 72. Ng5 {[%emt 0:00:14]} Bg8 {[%emt 0:00:42]} 73. g4 {[%emt 0:00:21]} d3 {[%emt 0:00:29]} 74. cxd3 {[%emt 0:00:04]} Rxd3 {[%emt 0:00:08]} 75. Rf8 {[%emt 0:01:35]} Bc4 {[%emt 0:00:25]} 76. Nf3 {[%emt 0:00:47]} Bd5 {[%emt 0:00:40]} 77. Ne5 {[%emt 0:00:19]} Rb3+ {[%emt 0:00:48]} 78. Kc2 {[%emt 0:00:02]} Rxb4 {[%emt 0:00:29]} 79. h5 {[%emt 0:00:13]} Re4 {[%emt 0:00:28]} 80. Rf5 {[%emt 0:00:14]} Rxg4 {[%emt 0:00:43]} 81. Nxg4 {[%emt 0:00:27]} Be4+ {[%emt 0:00:02]} 82. Kc3 {[%emt 0:00:06]} Bxf5 {[%emt 0:00:08]} 83. Ne3 {[%emt 0:00:58]} Bh7 {[%emt 0:00:18]} 84. Kb4 {[%emt 0:00:06]} b6 {[%emt 0:01:00]} 85. axb6+ {[%emt 0:00:07]} Kxb6 {[%emt 0:00:28]} 86. Nd5+ {[%emt 0:00:03]} Kc6 {[%emt 0:00:33]} 87. Nxc7 {[%emt 0:00:05]} Kxc7 {[%emt 0:00:03]} 88. Kxb5 {[%emt 0:00:02]} 1/2-1/2

[Event "Mitropa Cup Women 2024"]
[Site "Apolda"]
[Date "2024.02.16"]
[Round "2.15"]
[White "Hryzlova, Sofiia"]
[Black "Navrotescu, Andreea"]
[Result "1-0"]
[ECO "A13"]
[WhiteElo "2196"]
[BlackElo "2222"]
[Annotator "NA RC"]
[PlyCount "73"]
[EventDate "2024.02.15"]
[EventType "team-tourn"]
[EventCountry "GER"]
[SourceTitle "playchess.com"]
[Source "ChessBase"]
[SourceQuality "1"]
[WhiteTeam "Switzerland"]
[BlackTeam "France"]
[WhiteTeamCountry "SUI"]
[BlackTeamCountry "FRA"]
[TimeControl "40/5400+30:1800+30"]

1. Nf3 {[%emt 0:00:03]} d5 {[%emt 0:00:08]} 2. g3 {[%emt 0:00:21]} Nf6 {[%emt 0:00:54]} 3. c4 {[%emt 0:00:31]} e6 {[%emt 0:01:58]} 4. Bg2 {[%emt 0:00:25]} d4 {[%emt 0:00:18]} 5. O-O {[%emt 0:01:28]} c5 {[%emt 0:00:18]} 6. e3 {[%emt 0:00:17]} Nc6 {[%emt 0:00:09]} 7. exd4 {[%emt 0:00:20]} cxd4 {[%emt 0:00:09]} 8. d3 {[%emt 0:00:06]} Bc5 {[%emt 0:00:13]} 9. Re1 {[%emt 0:09:40]} O-O {[%emt 0:01:34]} 10. Nbd2 {[%emt 0:07:58]} Re8 {[%emt 0:05:31]} 11. a3 {[%emt 0:04:43]} a5 {[%emt 0:00:23]} 12. Ne5 {[%emt 0:00:21]} Nxe5 {[%emt 0:01:40]} 13. Rxe5 {[%emt 0:00:08]} Nd7 {[%emt 0:00:47]} 14. Re1 {[%emt 0:01:00]} Bf8 {[%emt 0:04:01]} 15. Ne4 {[%emt 0:03:37]} h6 {[%emt 0:02:07]} 16. g4 {[%emt 0:06:28]} Nf6 {[%emt 0:18:52]} 17. Ng3 {[%emt 0:08:36]} Nd7 {[%emt 0:15:04]} 18. b3 {[%emt 0:09:14]} Nc5 {[%emt 0:02:11]} 19. Rb1 {[%emt 0:00:43]} a4 {[%emt 0:13:47]} 20. b4 {[%emt 0:01:47]} Nb3 {[%emt 0:00:03]} 21. Bf4 {[%emt 0:10:07]} Bd6 {[%emt 0:02:02]} 22. Bxd6 {[%emt 0:04:24]} Qxd6 {[%emt 0:00:03]} 23. c5 {[%emt 0:00:22]} Qc7 {[%emt 0:09:52]} 24. Ne4 {[%emt 0:01:32]} Bd7 {[%emt 0:00:21]} 25. g5 {[%emt 0:09:06]} hxg5 {[%emt 0:07:58]} 26. Qh5 {[%emt 0:00:21]} Bc6 {[%emt 0:08:37]} 27. Nxg5 {[%emt 0:05:28]} Nd2 {[%emt 0:01:39]} 28. Bxc6 {[%emt 0:03:25]} bxc6 {[%emt 0:01:09]} 29. Rbd1 {[%emt 0:00:29]} Qf4 {[%emt 0:01:01]} 30. Rxd2 {[%emt 0:01:38]} Qxd2 {[%emt 0:00:17]} 31. Qxf7+ {[%emt 0:00:10]} Kh8 {[%emt 0:00:01]} 32. Qh5+ {[%emt 0:00:09]} Kg8 {[%emt 0:00:02]} 33. Qh7+ {[%emt 0:00:26]} Kf8 {[%emt 0:00:01]} 34. Qh8+ {[%emt 0:00:10]} Ke7 {[%emt 0:00:07]} 35. Rxe6+ {[%emt 0:00:10]} Kd7 {[%emt 0:00:33]} 36. Qxg7+ {[%emt 0:00:07]} Kd8 {[%emt 0:00:11]} 37. Rd6+ {[%emt 0:00:31]} 1-0

[Event "Mitropa Cup Women 2024"]
[Site "Apolda"]
[Date "2024.02.16"]
[Round "2.16"]
[White "Blanquet, Camille"]
[Black "Manko, Mariia"]
[Result "0-1"]
[ECO "E06"]
[WhiteElo "2023"]
[BlackElo "2128"]
[Annotator "NA RC"]
[PlyCount "68"]
[EventDate "2024.02.15"]
[EventType "team-tourn"]
[EventCountry "GER"]
[SourceTitle "playchess.com"]
[Source "ChessBase"]
[SourceQuality "1"]
[WhiteTeam "France"]
[BlackTeam "Switzerland"]
[WhiteTeamCountry "FRA"]
[BlackTeamCountry "SUI"]
[TimeControl "40/5400+30:1800+30"]

1. d4 {[%emt 0:00:03]} d5 {[%emt 0:00:09]} 2. c4 {[%emt 0:01:07]} e6 {[%emt 0:00:10]} 3. Nf3 {[%emt 0:03:11]} Nf6 {[%emt 0:00:19]} 4. Nc3 {[%emt 0:01:07]} Be7 {[%emt 0:00:28]} 5. g3 {[%emt 0:01:50]} O-O {[%emt 0:12:25]} 6. Bg2 {[%emt 0:00:09]} dxc4 {[%emt 0:04:06]} 7. Ne5 {[%emt 0:01:50]} c5 {[%emt 0:01:02]} 8. dxc5 {[%emt 0:01:49]} Qa5 {[%emt 0:06:34]} 9. Nxc4 {[%emt 0:06:23]} Qxc5 {[%emt 0:01:56]} 10. Qb3 {[%emt 0:02:00]} Nc6 {[%emt 0:02:10]} 11. Be3 {[%emt 0:07:50]} Nd4 {[%emt 0:04:06]} 12. Bxd4 {[%emt 0:00:44]} Qxd4 {[%emt 0:00:05]} 13. O-O {[%emt 0:00:43]} Rb8 {[%emt 0:01:39]} 14. Rac1 {[%emt 0:04:35]} Bd7 {[%emt 0:11:53]} 15. Rfd1 {[%emt 0:07:48]} Qc5 {[%emt 0:00:40]} 16. e4 {[%emt 0:02:28]} b5 {[%emt 0:06:25]} 17. Ne3 {[%emt 0:01:22]} Qh5 {[%emt 0:05:59]} 18. h3 {[%emt 0:10:51]} b4 {[%emt 0:02:15]} 19. Nb1 {[%emt 0:02:14]} Bb5 {[%emt 0:08:00]} 20. Nc4 {[%emt 0:05:24]} Rfd8 {[%emt 0:04:33]} 21. Rxd8+ {[%emt 0:04:52]} Rxd8 {[%emt 0:00:26]} 22. Nbd2 {[%emt 0:00:52]} a5 {[%emt 0:03:55]} 23. e5 {[%emt 0:04:03]} a4 {[%emt 0:02:51]} 24. Qe3 {[%emt 0:03:48]} Nd5 {[%emt 0:01:59]} 25. Qa7 {[%emt 0:02:38]} Bg5 {[%emt 0:02:50]} 26. f4 {[%emt 0:04:51]} Bxf4 {[%emt 0:03:12]} 27. gxf4 {[%emt 0:00:30]} Nxf4 {[%emt 0:00:17]} 28. Kh2 {[%emt 0:12:14]} Bxc4 {[%emt 0:02:37]} 29. Nxc4 {[%emt 0:02:03]} Nxg2 {[%emt 0:02:33]} 30. Qc7 {[%emt 0:04:39]} Rf8 {[%emt 0:00:36]} 31. Rg1 {[%emt 0:00:29]} Nf4 {[%emt 0:01:03]} 32. Rg3 {[%emt 0:00:56]} Qe2+ {[%emt 0:00:07]} 33. Kg1 {[%emt 0:00:52]} Qe1+ {[%emt 0:00:06]} 34. Kh2 {[%emt 0:00:05]} Qf2+ {[%emt 0:00:05]} 0-1

[Event "Mitropa Cup Women 2024"]
[Site "Apolda"]
[Date "2024.02.16"]
[Round "2.17"]
[White "Walter, Ema"]
[Black "Cvitan, Ena"]
[Result "0-1"]
[ECO "B13"]
[WhiteElo "2124"]
[BlackElo "2242"]
[Annotator "NA RC"]
[PlyCount "58"]
[EventDate "2024.02.15"]
[EventType "team-tourn"]
[EventCountry "GER"]
[SourceTitle "playchess.com"]
[Source "ChessBase"]
[SourceQuality "1"]
[WhiteTeam "Slovakia"]
[BlackTeam "Croatia"]
[WhiteTeamCountry "SVK"]
[BlackTeamCountry "CRO"]
[TimeControl "40/5400+30:1800+30"]

1. e4 {[%emt 0:00:03]} c6 {[%emt 0:00:21]} 2. d4 {[%emt 0:00:07]} d5 {[%emt 0:00:08]} 3. exd5 {[%emt 0:00:05]} cxd5 {[%emt 0:00:08]} 4. Bd3 {[%emt 0:00:08]} Nc6 {[%emt 0:00:35]} 5. c3 {[%emt 0:00:12]} e6 {[%emt 0:00:33]} 6. Nf3 {[%emt 0:00:09]} Bd6 {[%emt 0:00:45]} 7. O-O {[%emt 0:00:40]} Nge7 {[%emt 0:00:21]} 8. Re1 {[%emt 0:00:27]} Qc7 {[%emt 0:00:24]} 9. Nbd2 {[%emt 0:03:22]} Bd7 {[%emt 0:00:43]} 10. Nf1 {[%emt 0:07:12]} O-O-O {[%emt 0:04:26]} 11. b4 {[%emt 0:04:14]} f6 {[%emt 0:02:10]} 12. a4 {[%emt 0:09:11]} Kb8 {[%emt 0:04:44]} 13. b5 {[%emt 0:16:29]} Na5 {[%emt 0:00:26]} 14. Ba3 {[%emt 0:00:06]} Bxa3 {[%emt 0:11:22]} 15. Rxa3 {[%emt 0:00:05]} Qd6 {[%emt 0:00:30]} 16. Ra2 {[%emt 0:03:00]} Rc8 {[%emt 0:05:15]} 17. Rc2 {[%emt 0:12:16]} g5 {[%emt 0:05:43]} 18. N3d2 {[%emt 0:02:59]} Rc7 {[%emt 0:06:37]} 19. c4 {[%emt 0:10:27]} dxc4 {[%emt 0:06:05]} 20. Nxc4 {[%emt 0:02:47]} Nxc4 {[%emt 0:01:33]} 21. Bxc4 {[%emt 0:00:11]} Nf5 {[%emt 0:03:41]} 22. Re4 {[%emt 0:05:04]} e5 {[%emt 0:08:25]} 23. d5 {[%emt 0:04:27]} Rhc8 {[%emt 0:04:13]} 24. Bb3 {[%emt 0:02:45]} Rxc2 {[%emt 0:00:47]} 25. Bxc2 {[%emt 0:00:04]} Nd4 {[%emt 0:01:09]} 26. Bb3 {[%emt 0:02:54]} Qa3 {[%emt 0:03:08]} 27. Re3 {[%emt 0:02:52]} Rc1 {[%emt 0:01:55]} 28. Bc4 {[%emt 0:05:14]} Qa1 {[%emt 0:01:25]} 29. Qd3 {[%emt 0:01:38]} Bf5 {[%emt 0:01:12]} 0-1

[Event "Mitropa Cup Women 2024"]
[Site "Apolda"]
[Date "2024.02.16"]
[Round "2.18"]
[White "Medic, Mirjana"]
[Black "Sankova, Stella"]
[Result "1-0"]
[ECO "D35"]
[WhiteElo "2151"]
[BlackElo "2124"]
[Annotator "NA RC"]
[PlyCount "99"]
[EventDate "2024.02.15"]
[EventType "team-tourn"]
[EventCountry "GER"]
[SourceTitle "playchess.com"]
[Source "ChessBase"]
[SourceQuality "1"]
[WhiteTeam "Croatia"]
[BlackTeam "Slovakia"]
[WhiteTeamCountry "CRO"]
[BlackTeamCountry "SVK"]
[TimeControl "40/5400+30:1800+30"]

1. d4 {[%emt 0:00:03]} d5 {[%emt 0:00:07]} 2. c4 {[%emt 0:00:04]} e6 {[%emt 0:00:10]} 3. Nc3 {[%emt 0:00:06]} Nf6 {[%emt 0:00:12]} 4. cxd5 {[%emt 0:00:07]} exd5 {[%emt 0:00:07]} 5. Bg5 {[%emt 0:00:05]} c6 {[%emt 0:00:14]} 6. e3 {[%emt 0:00:11]} h6 {[%emt 0:00:50]} 7. Bh4 {[%emt 0:00:13]} Be7 {[%emt 0:00:26]} 8. Bd3 {[%emt 0:00:21]} O-O {[%emt 0:00:45]} 9. Nge2 {[%emt 0:02:16]} Ne8 {[%emt 0:10:04]} 10. Bg3 {[%emt 0:08:15]} Nd6 {[%emt 0:01:23]} 11. Qc2 {[%emt 0:01:46]} Nd7 {[%emt 0:02:05]} 12. O-O {[%emt 0:02:12]} Nf6 {[%emt 0:04:43]} 13. f3 {[%emt 0:02:52]} Nh5 {[%emt 0:06:13]} 14. Bf2 {[%emt 0:03:42]} f5 {[%emt 0:04:21]} 15. Rae1 {[%emt 0:15:43]} Be6 {[%emt 0:10:05]} 16. Nc1 {[%emt 0:09:11]} Qd7 {[%emt 0:03:28]} 17. Be2 {[%emt 0:05:28]} f4 {[%emt 0:12:16]} 18. e4 {[%emt 0:06:00]} dxe4 {[%emt 0:13:51]} 19. fxe4 {[%emt 0:02:28]} f3 {[%emt 0:04:35]} 20. Bxf3 {[%emt 0:03:02]} Rxf3 {[%emt 0:03:41]} 21. gxf3 {[%emt 0:00:39]} Bh3 {[%emt 0:00:36]} 22. Bg3 {[%emt 0:06:07]} Bxf1 {[%emt 0:03:47]} 23. Rxf1 {[%emt 0:00:23]} Nf7 {[%emt 0:00:40]} 24. Nb3 {[%emt 0:05:14]} Rf8 {[%emt 0:00:38]} 25. f4 {[%emt 0:03:26]} Nd6 {[%emt 0:04:37]} 26. f5 {[%emt 0:05:58]} Nxg3 {[%emt 0:02:26]} 27. hxg3 {[%emt 0:00:05]} Nc4 {[%emt 0:00:23]} 28. Qe2 {[%emt 0:01:59]} b5 {[%emt 0:00:32]} 29. Nd1 {[%emt 0:03:06]} Bg5 {[%emt 0:00:27]} 30. Rf3 {[%emt 0:03:36]} a5 {[%emt 0:01:05]} 31. Rd3 {[%emt 0:01:10]} Re8 {[%emt 0:00:25]} 32. g4 {[%emt 0:01:57]} h5 {[%emt 0:02:22]} 33. Nc5 {[%emt 0:01:10]} Qa7 {[%emt 0:01:45]} 34. gxh5 {[%emt 0:02:57]} Qf7 {[%emt 0:05:13]} 35. Ne6 {[%emt 0:01:07]} Bh6 {[%emt 0:00:25]} 36. Nf2 {[%emt 0:01:29]} Rxe6 {[%emt 0:00:48]} 37. fxe6 {[%emt 0:00:38]} Qxe6 {[%emt 0:00:14]} 38. Qg4 {[%emt 0:01:26]} Qe8 {[%emt 0:01:22]} 39. b3 {[%emt 0:00:55]} Nd6 {[%emt 0:01:12]} 40. e5 {[%emt 0:00:50]} Nc8 {[%emt 0:01:08]} 41. Ne4 {[%emt 0:30:45]} Kh8 {[%emt 0:30:18]} 42. Rf3 {[%emt 0:00:00]} Qd8 {[%emt 0:00:00]} 43. Nc5 {[%emt 0:00:00]} Ne7 {[%emt 0:00:00]} 44. Ne6 {[%emt 0:00:00]} Qd5 {[%emt 0:00:00]} 45. Rf8+ {[%emt 0:00:00]} Kh7 {[%emt 0:00:00]} 46. Rd8 {[%emt 0:00:00]} Be3+ {[%emt 0:00:00]} 47. Kh2 {[%emt 0:00:00]} Bf4+ {[%emt 0:00:00]} 48. Qxf4 {[%emt 0:00:00]} Qxe6 {[%emt 0:00:00]} 49. Qf8 {[%emt 0:00:00]} Kh6 {[%emt 0:00:00]} 50. Rd6 {[%emt 0:00:00]} 1-0

[Event "Mitropa Cup Women 2024"]
[Site "Apolda"]
[Date "2024.02.16"]
[Round "2.19"]
[White "Sevcikova, Lucia"]
[Black "Berke, Ana"]
[Result "1/2-1/2"]
[ECO "E52"]
[WhiteElo "2007"]
[BlackElo "2092"]
[Annotator "NA RC"]
[PlyCount "83"]
[EventDate "2024.02.15"]
[EventType "team-tourn"]
[EventCountry "GER"]
[SourceTitle "playchess.com"]
[Source "ChessBase"]
[SourceQuality "1"]
[WhiteTeam "Slovakia"]
[BlackTeam "Croatia"]
[WhiteTeamCountry "SVK"]
[BlackTeamCountry "CRO"]
[TimeControl "40/5400+30:1800+30"]

1. d4 {[%emt 0:00:04]} Nf6 {[%emt 0:00:04]} 2. c4 {[%emt 0:00:07]} e6 {[%emt 0:00:04]} 3. Nc3 {[%emt 0:00:12]} Bb4 {[%emt 0:00:06]} 4. e3 {[%emt 0:00:08]} O-O {[%emt 0:00:05]} 5. Bd2 {[%emt 0:00:30]} d5 {[%emt 0:01:22]} 6. Nf3 {[%emt 0:00:08]} b6 {[%emt 0:00:06]} 7. cxd5 {[%emt 0:00:41]} exd5 {[%emt 0:00:11]} 8. Bd3 {[%emt 0:00:09]} Bb7 {[%emt 0:02:54]} 9. Rc1 {[%emt 0:02:10]} a6 {[%emt 0:00:05]} 10. O-O {[%emt 0:00:24]} Bd6 {[%emt 0:00:55]} 11. Ne5 {[%emt 0:04:12]} c5 {[%emt 0:01:38]} 12. f4 {[%emt 0:01:24]} Nc6 {[%emt 0:00:28]} 13. Ng4 {[%emt 0:17:55]} Be7 {[%emt 0:02:43]} 14. Nxf6+ {[%emt 0:20:05]} Bxf6 {[%emt 0:00:13]} 15. dxc5 {[%emt 0:00:57]} bxc5 {[%emt 0:03:00]} 16. Na4 {[%emt 0:01:51]} c4 {[%emt 0:02:09]} 17. Be2 {[%emt 0:00:29]} Qe7 {[%emt 0:12:00]} 18. Bf3 {[%emt 0:02:43]} Rad8 {[%emt 0:03:41]} 19. Qe1 {[%emt 0:05:31]} Rfe8 {[%emt 0:06:02]} 20. a3 {[%emt 0:03:06]} Qd6 {[%emt 0:04:51]} 21. Qf2 {[%emt 0:00:59]} g6 {[%emt 0:20:02]} 22. Kh1 {[%emt 0:01:22]} Bg7 {[%emt 0:00:21]} 23. Rfd1 {[%emt 0:04:41]} Qb8 {[%emt 0:05:11]} 24. Bc3 {[%emt 0:02:55]} Ne7 {[%emt 0:01:12]} 25. Bxg7 {[%emt 0:03:04]} Kxg7 {[%emt 0:00:01]} 26. Nc3 {[%emt 0:00:18]} Qa7 {[%emt 0:03:44]} 27. Kg1 {[%emt 0:02:28]} f5 {[%emt 0:05:46]} 28. Rd2 {[%emt 0:01:52]} Qc5 {[%emt 0:02:01]} 29. Rcd1 {[%emt 0:01:20]} Rd6 {[%emt 0:03:17]} 30. Rd4 {[%emt 0:03:02]} Red8 {[%emt 0:04:28]} 31. Qd2 {[%emt 0:03:14]} Kf6 {[%emt 0:03:52]} 32. Na4 {[%emt 0:03:57]} Qb5 {[%emt 0:00:56]} 33. Nc3 {[%emt 0:00:37]} Qc5 {[%emt 0:02:14]} 34. Kf1 {[%emt 0:00:44]} Ke6 {[%emt 0:00:19]} 35. Qe1 {[%emt 0:01:30]} Ng8 {[%emt 0:00:50]} 36. Ne2 {[%emt 0:01:25]} Ke7 {[%emt 0:03:10]} 37. Qc3 {[%emt 0:00:24]} Rb6 {[%emt 0:03:57]} 38. R4d2 {[%emt 0:02:14]} Nf6 {[%emt 0:00:28]} 39. Nd4 {[%emt 0:01:30]} Rc8 {[%emt 0:03:02]} 40. Ne2 {[%emt 0:04:41]} Re6 {[%emt 0:01:46]} 41. Nd4 {[%emt 0:32:12]} Rb6 {[%emt 0:30:35]} 42. h3 {[%emt 0:00:00]} 1/2-1/2

[Event "Mitropa Cup Women 2024"]
[Site "Apolda"]
[Date "2024.02.16"]
[Round "2.20"]
[White "Mihaljevic, Eva"]
[Black "Sekova, Olivia"]
[Result "1-0"]
[ECO "B58"]
[WhiteElo "2043"]
[BlackElo "2054"]
[Annotator "NA RC"]
[PlyCount "113"]
[EventDate "2024.02.15"]
[EventType "team-tourn"]
[EventCountry "GER"]
[SourceTitle "playchess.com"]
[Source "ChessBase"]
[SourceQuality "1"]
[WhiteTeam "Croatia"]
[BlackTeam "Slovakia"]
[WhiteTeamCountry "CRO"]
[BlackTeamCountry "SVK"]
[TimeControl "40/5400+30:1800+30"]

1. e4 {[%emt 0:00:02]} c5 {[%emt 0:00:14]} 2. Nf3 {[%emt 0:00:14]} d6 {[%emt 0:00:12]} 3. d4 {[%emt 0:00:12]} cxd4 {[%emt 0:00:06]} 4. Nxd4 {[%emt 0:00:06]} Nf6 {[%emt 0:00:13]} 5. Nc3 {[%emt 0:00:17]} Nc6 {[%emt 0:00:06]} 6. Be2 {[%emt 0:03:16]} e5 {[%emt 0:02:15]} 7. Nf3 {[%emt 0:02:34]} h6 {[%emt 0:02:41]} 8. O-O {[%emt 0:06:34]} Be6 {[%emt 0:01:08]} 9. Be3 {[%emt 0:09:00]} Be7 {[%emt 0:01:38]} 10. Nd2 {[%emt 0:07:29]} O-O {[%emt 0:06:28]} 11. Bc4 {[%emt 0:08:40]} d5 {[%emt 0:12:07]} 12. exd5 {[%emt 0:00:20]} Nxd5 {[%emt 0:02:26]} 13. Nxd5 {[%emt 0:08:24]} Bxd5 {[%emt 0:00:06]} 14. Qh5 {[%emt 0:05:42]} Bxc4 {[%emt 0:11:50]} 15. Nxc4 {[%emt 0:00:03]} Qd5 {[%emt 0:00:51]} 16. b3 {[%emt 0:05:46]} Qe4 {[%emt 0:02:56]} 17. Rac1 {[%emt 0:08:03]} Rad8 {[%emt 0:09:10]} 18. Rfe1 {[%emt 0:03:02]} Qh7 {[%emt 0:08:08]} 19. a4 {[%emt 0:07:45]} Nb4 {[%emt 0:06:18]} 20. Bxa7 {[%emt 0:07:18]} Na2 {[%emt 0:11:20]} 21. Rcd1 {[%emt 0:01:54]} Qxc2 {[%emt 0:00:37]} 22. Rxd8 {[%emt 0:02:52]} Rxd8 {[%emt 0:00:20]} 23. Qxe5 {[%emt 0:05:26]} Bb4 {[%emt 0:02:32]} 24. Rf1 {[%emt 0:01:37]} Nc1 {[%emt 0:03:23]} 25. Ne3 {[%emt 0:02:58]} Ne2+ {[%emt 0:03:35]} 26. Kh1 {[%emt 0:00:09]} Qd3 {[%emt 0:03:23]} 27. h3 {[%emt 0:02:18]} Bd6 {[%emt 0:01:45]} 28. Qd5 {[%emt 0:01:27]} Qa6 {[%emt 0:01:40]} 29. Bc5 {[%emt 0:00:35]} Bc7 {[%emt 0:04:40]} 30. Qc4 {[%emt 0:00:20]} Qc6 {[%emt 0:01:28]} 31. Be7 {[%emt 0:00:55]} Re8 {[%emt 0:00:24]} 32. Qxc6 {[%emt 0:00:34]} bxc6 {[%emt 0:00:04]} 33. Bc5 {[%emt 0:00:12]} Re5 {[%emt 0:00:10]} 34. Ba3 {[%emt 0:00:55]} Ng3+ {[%emt 0:02:32]} 35. fxg3 {[%emt 0:00:21]} Rxe3 {[%emt 0:00:05]} 36. Rf3 {[%emt 0:00:32]} Re1+ {[%emt 0:00:46]} 37. Kh2 {[%emt 0:00:06]} Bb6 {[%emt 0:00:03]} 38. g4 {[%emt 0:00:53]} c5 {[%emt 0:01:03]} 39. Kg3 {[%emt 0:00:33]} Ra1 {[%emt 0:00:21]} 40. Bb2 {[%emt 0:00:19]} Ra2 {[%emt 0:00:19]} 41. Be5 {[%emt 0:30:16]} f6 {[%emt 0:30:38]} 42. Bd6 {[%emt 0:00:53]} Rd2 {[%emt 0:00:00]} 43. Bf4 {[%emt 0:00:00]} Ra2 {[%emt 0:00:00]} 44. Rc3 {[%emt 0:00:00]} Rb2 {[%emt 0:00:00]} 45. Bc1 {[%emt 0:00:00]} Rb1 {[%emt 0:00:00]} 46. Kf4 {[%emt 0:00:00]} Kf7 {[%emt 0:00:00]} 47. Ke4 {[%emt 0:00:00]} Ra1 {[%emt 0:00:00]} 48. Kd5 {[%emt 0:00:00]} Ra2 {[%emt 0:00:00]} 49. Kc6 {[%emt 0:00:00]} Bd8 {[%emt 0:00:00]} 50. g3 {[%emt 0:00:00]} Be7 {[%emt 0:00:00]} 51. Be3 {[%emt 0:00:00]} Rh2 {[%emt 0:00:00]} 52. Bxc5 {[%emt 0:00:00]} Rxh3 {[%emt 0:00:00]} 53. Bxe7 {[%emt 0:00:00]} Kxe7 {[%emt 0:00:00]} 54. Kb7 {[%emt 0:00:00]} g5 {[%emt 0:00:00]} 55. a5 {[%emt 0:00:00]} h5 {[%emt 0:00:00]} 56. gxh5 {[%emt 0:00:00]} Kd7 {[%emt 0:00:00]} 57. a6 {[%emt 0:00:00]} 1-0